[Event "Titled Tuesday Blitz March 07 Early 2023"]
[White "UNSTOPPABLE_LEGEND"]
[Black "Tsatsalashvili, Keti"]
[BlackFideId "13603434"]
[WhiteElo "2484"]
[BlackElo "2220"]
[Result "0-1"]
[Round "09"]
[TimeControl "180+2"]
[Date "2023.03.07"]
[WhiteClock "0:00:05"]
[BlackClock "0:00:21"]

1. d4 {[%clk 0:02:54]}  Nf6 {[%clk 0:02:59]} 2. c4 {[%clk 0:02:53]}  e6 {[%clk 0:02:58]} 3. Nc3 {[%clk 0:02:53]}  d5 {[%clk 0:02:58]} 4. cxd5 {[%clk 0:02:52]}  exd5 {[%clk 0:02:58]} 5. Bg5 {[%clk 0:02:52]}  c6 {[%clk 0:02:57]} 6. e3 {[%clk 0:02:52]}  Bd6 {[%clk 0:02:56]} 7. Bd3 {[%clk 0:02:50]}  Bg4 {[%clk 0:02:53]} 8. Qc2 {[%clk 0:02:45]}  Nbd7 {[%clk 0:02:51]} 9. Nge2 {[%clk 0:02:43]}  Bh5 {[%clk 0:02:41]} 10. f3 {[%clk 0:02:19]}  Bg6 {[%clk 0:02:38]} 11. Bxg6 {[%clk 0:02:10]}  hxg6 {[%clk 0:02:39]} 12. e4 {[%clk 0:02:11]}  dxe4 {[%clk 0:02:24]} 13. fxe4 {[%clk 0:02:12]}  Rxh2 {[%clk 0:02:19]} 14. Rxh2 {[%clk 0:02:08]}  Bxh2 {[%clk 0:02:20]} 15. e5 {[%clk 0:02:07]}  Qa5 {[%clk 0:02:13]} 16. O-O-O {[%clk 0:02:00]}  Nxe5 {[%clk 0:01:51]} 17. dxe5 {[%clk 0:01:59]}  Bxe5 {[%clk 0:01:51]} 18. Bf4 {[%clk 0:01:49]}  Kf8 {[%clk 0:01:44]} 19. Rh1 {[%clk 0:01:43]}  Kg8 {[%clk 0:01:40]} 20. Kb1 {[%clk 0:01:37]}  Bxf4 {[%clk 0:01:34]} 21. Nxf4 {[%clk 0:01:38]}  Qg5 {[%clk 0:01:33]} 22. Qf2 {[%clk 0:01:28]}  Qf5+ {[%clk 0:01:28]} 23. Ka1 {[%clk 0:01:27]}  Ng4 {[%clk 0:00:48]} 24. Qg3 {[%clk 0:01:19]}  Re8 {[%clk 0:00:44]} 25. Qh4 {[%clk 0:01:07]}  Nh6 {[%clk 0:00:44]} 26. Nfe2 {[%clk 0:01:00]}  b5 {[%clk 0:00:40]} 27. Qd4 {[%clk 0:00:56]}  a5 {[%clk 0:00:37]} 28. Ng3 {[%clk 0:00:53]}  Qc2 {[%clk 0:00:34]} 29. Nce4 {[%clk 0:00:16]}  Qxg2 {[%clk 0:00:29]} 30. Rxh6 {[%clk 0:00:14]}  gxh6 {[%clk 0:00:15]} 31. Nf6+ {[%clk 0:00:14]}  Kf8 {[%clk 0:00:15]} 32. Nh7+ {[%clk 0:00:11]}  Ke7 {[%clk 0:00:15]} 33. Qf6+ {[%clk 0:00:06]}  Kd7 {[%clk 0:00:15]} 34. Qxf7+ {[%clk 0:00:06]}  Re7 {[%clk 0:00:14]} 35. Nf6+ {[%clk 0:00:05]}  Kd6 {[%clk 0:00:15]} 36. Nge4+ {[%clk 0:00:04]}  Rxe4 {[%clk 0:00:15]} 37. Qd7+ {[%clk 0:00:04]}  Ke5 {[%clk 0:00:15]} 38. Qe7+ {[%clk 0:00:03]}  Kf5 {[%clk 0:00:15]} 39. Qd7+ {[%clk 0:00:02]}  Kxf6 {[%clk 0:00:15]} 40. Qd6+ {[%clk 0:00:03]}  Re6 {[%clk 0:00:15]} 41. Qf8+ {[%clk 0:00:02]}  Ke5 {[%clk 0:00:15]} 42. Qc5+ {[%clk 0:00:03]}  Kf4 {[%clk 0:00:15]} 43. Qd4+ {[%clk 0:00:03]}  Re4 {[%clk 0:00:15]} 44. Qf6+ {[%clk 0:00:03]}  Ke3 {[%clk 0:00:16]} 45. Qc3+ {[%clk 0:00:03]}  Kf2 {[%clk 0:00:16]} 46. Qd2+ {[%clk 0:00:03]}  Re2 {[%clk 0:00:17]} 47. Qf4+ {[%clk 0:00:03]}  Qf3 {[%clk 0:00:16]} 48. Qd4+ {[%clk 0:00:03]}  Qe3 {[%clk 0:00:16]} 49. Qh4+ {[%clk 0:00:04]}  Qg3 {[%clk 0:00:16]} 50. Qd4+ {[%clk 0:00:04]}  Kg2 {[%clk 0:00:17]} 51. a4 {[%clk 0:00:02]}  Qe1+ {[%clk 0:00:17]} 52. Ka2 {[%clk 0:00:02]}  Qg3 {[%clk 0:00:17]} 53. axb5 {[%clk 0:00:01]}  cxb5 {[%clk 0:00:17]} 54. Qd5+ {[%clk 0:00:02]}  Qf3 {[%clk 0:00:17]} 55. Qxb5 {[%clk 0:00:03]}  Qf7+ {[%clk 0:00:17]} 56. Ka3 {[%clk 0:00:03]}  Re3+ {[%clk 0:00:17]} 57. b3 {[%clk 0:00:03]}  Rxb3+ {[%clk 0:00:17]} 58. Qxb3 {[%clk 0:00:04]}  Qxb3+ {[%clk 0:00:18]} 59. Kxb3 {[%clk 0:00:04]}  h5 {[%clk 0:00:19]} 60. Ka4 {[%clk 0:00:05]}  h4 {[%clk 0:00:20]} 61. Kxa5 {[%clk 0:00:05]}  h3 {[%clk 0:00:21]} 0-1


[Site "https://www.chess.com"]

[Event "Titled Tuesday Blitz March 07 Early 2023"]
[White "Alhadad, Mahmoud"]
[Black "Balla, Tamas-Kristof"]
[WhiteFideId "11501863"]
[BlackFideId "1208497"]
[WhiteElo "1955"]
[BlackElo "2334"]
[Result "1-0"]
[Round "09"]
[TimeControl "180+2"]
[Date "2023.03.07"]
[WhiteClock "0:00:09"]
[BlackClock "0:00:28"]

1. e4 {[%clk 0:02:59]}  c5 {[%clk 0:02:59]} 2. Nc3 {[%clk 0:02:58]}  Nc6 {[%clk 0:02:59]} 3. Bb5 {[%clk 0:02:58]}  Nd4 {[%clk 0:02:59]} 4. Nf3 {[%clk 0:02:58]}  Nf6 {[%clk 0:02:56]} 5. e5 {[%clk 0:02:55]}  Nxb5 {[%clk 0:02:55]} 6. Nxb5 {[%clk 0:02:55]}  Nd5 {[%clk 0:02:56]} 7. d4 {[%clk 0:02:52]}  Nc7 {[%clk 0:02:46]} 8. Nc3 {[%clk 0:02:49]}  cxd4 {[%clk 0:02:44]} 9. Nxd4 {[%clk 0:02:48]}  g6 {[%clk 0:02:38]} 10. O-O {[%clk 0:02:47]}  Bg7 {[%clk 0:02:38]} 11. Bf4 {[%clk 0:02:40]}  O-O {[%clk 0:02:34]} 12. Re1 {[%clk 0:02:40]}  b6 {[%clk 0:02:24]} 13. Qf3 {[%clk 0:02:39]}  Rb8 {[%clk 0:02:22]} 14. Rad1 {[%clk 0:02:29]}  Bb7 {[%clk 0:02:22]} 15. Qh3 {[%clk 0:02:29]}  Nd5 {[%clk 0:02:12]} 16. Nxd5 {[%clk 0:02:06]}  Bxd5 {[%clk 0:02:12]} 17. b3 {[%clk 0:02:05]}  Rc8 {[%clk 0:02:01]} 18. c4 {[%clk 0:02:05]}  Ba8 {[%clk 0:01:48]} 19. Bh6 {[%clk 0:01:45]}  e6 {[%clk 0:01:35]} 20. Bxg7 {[%clk 0:01:13]}  Kxg7 {[%clk 0:01:36]} 21. Nb5 {[%clk 0:01:10]}  Qg5 {[%clk 0:01:31]} 22. Rxd7 {[%clk 0:00:56]}  Rc5 {[%clk 0:01:31]} 23. Qg3 {[%clk 0:00:30]}  Qf5 {[%clk 0:01:11]} 24. Nd6 {[%clk 0:00:29]}  Qc2 {[%clk 0:01:04]} 25. Qf4 {[%clk 0:00:28]}  Qc3 {[%clk 0:00:56]} 26. Rxf7+ {[%clk 0:00:25]}  Rxf7 {[%clk 0:00:51]} 27. Qxf7+ {[%clk 0:00:25]}  Kh6 {[%clk 0:00:51]} 28. Qf4+ {[%clk 0:00:14]}  Kg7 {[%clk 0:00:47]} 29. Ne8+ {[%clk 0:00:13]}  Kg8 {[%clk 0:00:42]} 30. Nf6+ {[%clk 0:00:10]}  Kg7 {[%clk 0:00:42]} 31. Rd1 {[%clk 0:00:10]}  Qxe5 {[%clk 0:00:32]} 32. Rd7+ {[%clk 0:00:09]}  Kh8 {[%clk 0:00:28]} 33. Rxh7# {[%clk 0:00:09]} 1-0


[Site "https://www.chess.com"]

[Event "Titled Tuesday Blitz March 07 Early 2023"]
[White "Pino Perez, Lazaro"]
[Black "Kohler, Aran"]
[WhiteFideId "3517055"]
[BlackFideId "1002856"]
[WhiteElo "2170"]
[BlackElo "2253"]
[Result "1-0"]
[Round "09"]
[TimeControl "180+2"]
[Date "2023.03.07"]
[WhiteClock "0:00:18"]
[BlackClock "0:00:08"]

1. d4 {[%clk 0:03:00]}  d5 {[%clk 0:02:59]} 2. Bf4 {[%clk 0:03:01]}  Nf6 {[%clk 0:02:58]} 3. e3 {[%clk 0:02:58]}  c5 {[%clk 0:02:49]} 4. Nf3 {[%clk 0:02:54]}  Nc6 {[%clk 0:02:49]} 5. Nbd2 {[%clk 0:02:52]}  cxd4 {[%clk 0:02:45]} 6. exd4 {[%clk 0:02:51]}  Bg4 {[%clk 0:02:39]} 7. c3 {[%clk 0:02:49]}  a6 {[%clk 0:02:24]} 8. Qb3 {[%clk 0:02:45]}  Qc8 {[%clk 0:02:14]} 9. Bd3 {[%clk 0:02:32]}  g6 {[%clk 0:01:58]} 10. Ne5 {[%clk 0:02:24]}  Bd7 {[%clk 0:01:57]} 11. O-O {[%clk 0:02:18]}  Bg7 {[%clk 0:01:57]} 12. Rfe1 {[%clk 0:02:07]}  O-O {[%clk 0:01:57]} 13. Nxc6 {[%clk 0:01:58]}  Bxc6 {[%clk 0:01:56]} 14. Rxe7 {[%clk 0:01:59]}  Nh5 {[%clk 0:01:53]} 15. Be5 {[%clk 0:01:56]}  Re8 {[%clk 0:01:23]} 16. Rxe8+ {[%clk 0:01:45]}  Qxe8 {[%clk 0:01:22]} 17. Bxg7 {[%clk 0:01:45]}  Kxg7 {[%clk 0:01:20]} 18. g3 {[%clk 0:01:40]}  Qe6 {[%clk 0:01:16]} 19. Nf3 {[%clk 0:01:35]}  Re8 {[%clk 0:00:59]} 20. Re1 {[%clk 0:01:34]}  Qd7 {[%clk 0:00:46]} 21. Qd1 {[%clk 0:01:33]}  f6 {[%clk 0:00:34]} 22. Rxe8 {[%clk 0:01:28]}  Qxe8 {[%clk 0:00:34]} 23. Qe1 {[%clk 0:01:28]}  Qd7 {[%clk 0:00:33]} 24. Kg2 {[%clk 0:01:18]}  Bb5 {[%clk 0:00:33]} 25. Bxb5 {[%clk 0:01:00]}  axb5 {[%clk 0:00:33]} 26. h3 {[%clk 0:00:47]}  Kf7 {[%clk 0:00:21]} 27. Qe2 {[%clk 0:00:35]}  Ng7 {[%clk 0:00:20]} 28. Ne1 {[%clk 0:00:35]}  Ne6 {[%clk 0:00:17]} 29. Nd3 {[%clk 0:00:35]}  h5 {[%clk 0:00:16]} 30. h4 {[%clk 0:00:31]}  b6 {[%clk 0:00:15]} 31. Nb4 {[%clk 0:00:29]}  Qd6 {[%clk 0:00:12]} 32. Qxb5 {[%clk 0:00:26]}  Nf4+ {[%clk 0:00:11]} 33. gxf4 {[%clk 0:00:22]}  Qxf4 {[%clk 0:00:11]} 34. Qxd5+ {[%clk 0:00:22]}  Kg7 {[%clk 0:00:11]} 35. Qd7+ {[%clk 0:00:13]}  Kh6 {[%clk 0:00:10]} 36. Qh3 {[%clk 0:00:12]}  Qc1 {[%clk 0:00:10]} 37. Qe3+ {[%clk 0:00:13]}  Qxe3 {[%clk 0:00:09]} 38. fxe3 {[%clk 0:00:13]}  g5 {[%clk 0:00:10]} 39. Nd5 {[%clk 0:00:14]}  Kg6 {[%clk 0:00:09]} 40. Nxb6 {[%clk 0:00:14]}  Kf5 {[%clk 0:00:08]} 41. Nc4 {[%clk 0:00:15]}  Ke4 {[%clk 0:00:08]} 42. Nd6+ {[%clk 0:00:14]}  Kxe3 {[%clk 0:00:08]} 43. a4 {[%clk 0:00:15]}  g4 {[%clk 0:00:07]} 44. a5 {[%clk 0:00:15]}  Kf4 {[%clk 0:00:06]} 45. a6 {[%clk 0:00:14]}  f5 {[%clk 0:00:07]} 46. a7 {[%clk 0:00:14]}  Ke3 {[%clk 0:00:08]} 47. Nxf5+ {[%clk 0:00:14]}  Kd2 {[%clk 0:00:08]} 48. Nd6 {[%clk 0:00:15]}  Kc1 {[%clk 0:00:08]} 49. a8=Q {[%clk 0:00:15]}  Kxb2 {[%clk 0:00:09]} 50. Qc6 {[%clk 0:00:15]}  Kc2 {[%clk 0:00:08]} 51. c4 {[%clk 0:00:16]}  Kd3 {[%clk 0:00:09]} 52. d5 {[%clk 0:00:16]}  g3 {[%clk 0:00:08]} 53. Nf5 {[%clk 0:00:16]}  Ke4 {[%clk 0:00:09]} 54. Nxg3+ {[%clk 0:00:17]}  Kf4 {[%clk 0:00:08]} 55. Nxh5+ {[%clk 0:00:17]}  Kg4 {[%clk 0:00:08]} 56. Ng3 {[%clk 0:00:18]}  Kf4 {[%clk 0:00:08]} 57. Qf6+ {[%clk 0:00:17]}  Kg4 {[%clk 0:00:08]} 58. Qf5+ {[%clk 0:00:17]}  Kxh4 {[%clk 0:00:08]} 59. Qh5# {[%clk 0:00:18]} 1-0


[Site "https://www.chess.com"]

[Event "Titled Tuesday Blitz March 07 Early 2023"]
[White "Osinovsky, Stepan"]
[Black "Tagliati, Eleonore"]
[WhiteFideId "4157354"]
[BlackFideId "45172234"]
[WhiteElo "2222"]
[BlackElo "2234"]
[Result "1-0"]
[Round "09"]
[TimeControl "180+2"]
[Date "2023.03.07"]
[WhiteClock "0:00:14"]
[BlackClock "0:00:01"]

1. Nf3 {[%clk 0:03:00]}  d5 {[%clk 0:02:46]} 2. g3 {[%clk 0:03:01]}  Bf5 {[%clk 0:02:45]} 3. Bg2 {[%clk 0:03:01]}  Nf6 {[%clk 0:02:44]} 4. O-O {[%clk 0:03:01]}  h6 {[%clk 0:02:44]} 5. d3 {[%clk 0:03:01]}  c6 {[%clk 0:02:41]} 6. Nbd2 {[%clk 0:02:59]}  Nbd7 {[%clk 0:02:42]} 7. b3 {[%clk 0:02:58]}  e5 {[%clk 0:02:39]} 8. Bb2 {[%clk 0:02:53]}  Qc7 {[%clk 0:02:39]} 9. e4 {[%clk 0:02:51]}  dxe4 {[%clk 0:02:36]} 10. dxe4 {[%clk 0:02:50]}  Nxe4 {[%clk 0:02:32]} 11. Re1 {[%clk 0:02:41]}  Nxd2 {[%clk 0:02:29]} 12. Nxe5 {[%clk 0:02:37]}  Be7 {[%clk 0:01:42]} 13. Qxd2 {[%clk 0:02:15]}  Nf6 {[%clk 0:01:41]} 14. Qf4 {[%clk 0:01:51]}  Be6 {[%clk 0:01:25]} 15. Ng6 {[%clk 0:01:34]}  Qxf4 {[%clk 0:01:23]} 16. Nxf4 {[%clk 0:01:35]}  O-O {[%clk 0:00:46]} 17. Nxe6 {[%clk 0:01:20]}  fxe6 {[%clk 0:00:47]} 18. Rxe6 {[%clk 0:01:07]}  Kf7 {[%clk 0:00:47]} 19. Re2 {[%clk 0:01:04]}  Rfe8 {[%clk 0:00:44]} 20. Rae1 {[%clk 0:01:02]}  Rad8 {[%clk 0:00:38]} 21. Bh3 {[%clk 0:00:59]}  b6 {[%clk 0:00:27]} 22. Be6+ {[%clk 0:00:57]}  Kf8 {[%clk 0:00:28]} 23. Kg2 {[%clk 0:00:56]}  Bc5 {[%clk 0:00:26]} 24. h4 {[%clk 0:00:51]}  Rd6 {[%clk 0:00:19]} 25. f4 {[%clk 0:00:48]}  Re7 {[%clk 0:00:17]} 26. g4 {[%clk 0:00:39]}  Nd5 {[%clk 0:00:16]} 27. Kf3 {[%clk 0:00:36]}  Re8 {[%clk 0:00:12]} 28. g5 {[%clk 0:00:33]}  Nc7 {[%clk 0:00:12]} 29. Bf5 {[%clk 0:00:30]}  Rxe2 {[%clk 0:00:12]} 30. Rxe2 {[%clk 0:00:31]}  hxg5 {[%clk 0:00:12]} 31. hxg5 {[%clk 0:00:30]}  Nd5 {[%clk 0:00:11]} 32. Be5 {[%clk 0:00:25]}  Rd8 {[%clk 0:00:10]} 33. Be6 {[%clk 0:00:24]}  Ne7 {[%clk 0:00:10]} 34. f5 {[%clk 0:00:20]}  Bd4 {[%clk 0:00:09]} 35. Bxd4 {[%clk 0:00:16]}  Rxd4 {[%clk 0:00:10]} 36. Rh2 {[%clk 0:00:16]}  g6 {[%clk 0:00:01]} 37. f6 {[%clk 0:00:15]}  Ng8 {[%clk 0:00:01]} 38. Rh8 {[%clk 0:00:14]} 1-0


[Site "https://www.chess.com"]

[Event "Titled Tuesday Blitz March 07 Early 2023"]
[White "Andrews, Todd"]
[Black "Bashirli, Saadat"]
[WhiteFideId "2012456"]
[BlackFideId "13429990"]
[WhiteElo "2388"]
[BlackElo "1408"]
[Result "0-1"]
[Round "09"]
[TimeControl "180+2"]
[Date "2023.03.07"]
[WhiteClock "0:00:03"]
[BlackClock "0:00:03"]

1. e4 {[%clk 0:03:00]}  c5 {[%clk 0:02:59]} 2. Nf3 {[%clk 0:03:00]}  g6 {[%clk 0:02:59]} 3. d4 {[%clk 0:03:00]}  cxd4 {[%clk 0:03:00]} 4. Nxd4 {[%clk 0:03:00]}  Nc6 {[%clk 0:03:01]} 5. Nc3 {[%clk 0:03:00]}  Bg7 {[%clk 0:03:00]} 6. Be3 {[%clk 0:03:00]}  Nf6 {[%clk 0:02:56]} 7. Bc4 {[%clk 0:02:58]}  O-O {[%clk 0:02:54]} 8. Bb3 {[%clk 0:02:57]}  a5 {[%clk 0:02:52]} 9. Ndb5 {[%clk 0:02:49]}  a4 {[%clk 0:02:49]} 10. Nxa4 {[%clk 0:02:47]}  Rxa4 {[%clk 0:02:43]} 11. Bxa4 {[%clk 0:02:47]}  Qa5+ {[%clk 0:02:38]} 12. c3 {[%clk 0:02:47]}  Nxe4 {[%clk 0:02:34]} 13. O-O {[%clk 0:02:45]}  d6 {[%clk 0:02:29]} 14. Rc1 {[%clk 0:02:18]}  Be6 {[%clk 0:02:22]} 15. b4 {[%clk 0:02:16]}  Qd8 {[%clk 0:02:14]} 16. Bb3 {[%clk 0:01:56]}  d5 {[%clk 0:02:11]} 17. f3 {[%clk 0:01:49]}  Nf6 {[%clk 0:02:09]} 18. Nd4 {[%clk 0:01:48]}  Nxd4 {[%clk 0:02:08]} 19. Bxd4 {[%clk 0:01:48]}  Qd7 {[%clk 0:02:03]} 20. Re1 {[%clk 0:01:47]}  Rc8 {[%clk 0:01:59]} 21. Ba4 {[%clk 0:01:41]}  b5 {[%clk 0:01:57]} 22. Bb3 {[%clk 0:01:40]}  Bh6 {[%clk 0:01:58]} 23. Rc2 {[%clk 0:01:38]}  Bf5 {[%clk 0:01:57]} 24. Rce2 {[%clk 0:01:38]}  Bf8 {[%clk 0:01:39]} 25. Qd2 {[%clk 0:01:19]}  Be6 {[%clk 0:01:07]} 26. Qg5 {[%clk 0:01:06]}  Bg7 {[%clk 0:00:58]} 27. f4 {[%clk 0:00:55]}  Ne4 {[%clk 0:00:55]} 28. Qh4 {[%clk 0:00:33]}  Nxc3 {[%clk 0:00:54]} 29. Bxc3 {[%clk 0:00:34]}  Bxc3 {[%clk 0:00:53]} 30. Rd1 {[%clk 0:00:31]}  Bxb4 {[%clk 0:00:50]} 31. f5 {[%clk 0:00:29]}  Bxf5 {[%clk 0:00:47]} 32. Bxd5 {[%clk 0:00:26]}  Qa7+ {[%clk 0:00:45]} 33. Kh1 {[%clk 0:00:24]}  Bd6 {[%clk 0:00:35]} 34. Bb3 {[%clk 0:00:20]}  h5 {[%clk 0:00:24]} 35. Rf2 {[%clk 0:00:19]}  Bc5 {[%clk 0:00:16]} 36. Rxf5 {[%clk 0:00:18]}  gxf5 {[%clk 0:00:14]} 37. Qg5+ {[%clk 0:00:18]}  Kf8 {[%clk 0:00:13]} 38. Qxf5 {[%clk 0:00:19]}  e6 {[%clk 0:00:09]} 39. Bxe6 {[%clk 0:00:18]}  Rc7 {[%clk 0:00:09]} 40. Rd8+ {[%clk 0:00:17]}  Ke7 {[%clk 0:00:09]} 41. Qg5+ {[%clk 0:00:09]}  Kxe6 {[%clk 0:00:09]} 42. Re8+ {[%clk 0:00:06]}  Kd7 {[%clk 0:00:08]} 43. Qd8+ {[%clk 0:00:05]}  Kc6 {[%clk 0:00:08]} 44. Re5 {[%clk 0:00:05]}  Rd7 {[%clk 0:00:06]} 45. Qc8+ {[%clk 0:00:05]}  Qc7 {[%clk 0:00:06]} 46. Qa6+ {[%clk 0:00:05]}  Qb6 {[%clk 0:00:06]} 47. Qa8+ {[%clk 0:00:05]}  Qb7 {[%clk 0:00:06]} 48. Qe8 {[%clk 0:00:03]}  Bd6 {[%clk 0:00:05]} 49. Re4 {[%clk 0:00:03]}  Kc7 {[%clk 0:00:03]} 0-1


[Site "https://www.chess.com"]

[Event "Titled Tuesday Blitz March 07 Early 2023"]
[White "Cella, Glaucio Dalla Cortt"]
[Black "Jiganchine, Roman"]
[WhiteFideId "2119455"]
[BlackFideId "2603667"]
[WhiteElo "2011"]
[BlackElo "2311"]
[Result "1-0"]
[Round "09"]
[TimeControl "180+2"]
[Date "2023.03.07"]
[WhiteClock "0:01:21"]
[BlackClock "0:00:06"]

1. e4 {[%clk 0:03:00]}  c6 {[%clk 0:02:47]} 2. Nf3 {[%clk 0:03:01]}  d5 {[%clk 0:02:44]} 3. exd5 {[%clk 0:03:02]}  cxd5 {[%clk 0:02:44]} 4. d4 {[%clk 0:03:03]}  Nc6 {[%clk 0:02:42]} 5. c3 {[%clk 0:03:03]}  Qc7 {[%clk 0:02:39]} 6. Bd3 {[%clk 0:03:01]}  Nf6 {[%clk 0:02:36]} 7. O-O {[%clk 0:02:58]}  Bg4 {[%clk 0:02:35]} 8. Re1 {[%clk 0:02:53]}  e6 {[%clk 0:02:32]} 9. Bg5 {[%clk 0:02:52]}  Be7 {[%clk 0:02:31]} 10. Nbd2 {[%clk 0:02:49]}  O-O {[%clk 0:02:31]} 11. h3 {[%clk 0:02:31]}  Bh5 {[%clk 0:02:30]} 12. g4 {[%clk 0:02:30]}  Bg6 {[%clk 0:02:29]} 13. Bxg6 {[%clk 0:02:31]}  hxg6 {[%clk 0:02:29]} 14. Ne5 {[%clk 0:02:27]}  Nxe5 {[%clk 0:02:23]} 15. dxe5 {[%clk 0:02:28]}  Nh7 {[%clk 0:02:23]} 16. Bxe7 {[%clk 0:02:22]}  Qxe7 {[%clk 0:02:24]} 17. f4 {[%clk 0:02:22]}  Rac8 {[%clk 0:02:15]} 18. Nf3 {[%clk 0:02:19]}  Rc4 {[%clk 0:02:13]} 19. Qd2 {[%clk 0:02:19]}  Rfc8 {[%clk 0:02:06]} 20. Nd4 {[%clk 0:02:19]}  Qh4 {[%clk 0:01:56]} 21. Kg2 {[%clk 0:02:19]}  g5 {[%clk 0:01:18]} 22. Nf3 {[%clk 0:02:09]}  Qh6 {[%clk 0:01:08]} 23. fxg5 {[%clk 0:02:10]}  Qg6 {[%clk 0:01:06]} 24. Kg3 {[%clk 0:02:10]}  d4 {[%clk 0:00:57]} 25. Rac1 {[%clk 0:01:56]}  dxc3 {[%clk 0:00:43]} 26. Rxc3 {[%clk 0:01:57]}  Rxc3 {[%clk 0:00:43]} 27. bxc3 {[%clk 0:01:54]}  Rc5 {[%clk 0:00:29]} 28. h4 {[%clk 0:01:53]}  Nf8 {[%clk 0:00:27]} 29. h5 {[%clk 0:01:47]}  Qh7 {[%clk 0:00:24]} 30. g6 {[%clk 0:01:48]}  fxg6 {[%clk 0:00:20]} 31. Rf1 {[%clk 0:01:27]}  Rd5 {[%clk 0:00:17]} 32. Qf4 {[%clk 0:01:27]}  gxh5 {[%clk 0:00:12]} 33. Ng5 {[%clk 0:01:27]}  h4+ {[%clk 0:00:06]} 34. Kh2 {[%clk 0:01:21]} 1-0


[Site "https://www.chess.com"]

[Event "Titled Tuesday Blitz March 07 Early 2023"]
[White "Liu, Kelsey"]
[Black "Rodchenkov, Sergey D."]
[WhiteFideId "30944481"]
[BlackFideId "4168712"]
[WhiteElo "2286"]
[BlackElo "2277"]
[Result "1-0"]
[Round "09"]
[TimeControl "180+2"]
[Date "2023.03.07"]
[WhiteClock "0:00:04"]
[BlackClock "0:00:29"]

1. e4 {[%clk 0:02:55]}  c5 {[%clk 0:02:59]} 2. Nf3 {[%clk 0:02:53]}  d6 {[%clk 0:03:00]} 3. Nc3 {[%clk 0:02:53]}  Nf6 {[%clk 0:03:00]} 4. e5 {[%clk 0:02:53]}  dxe5 {[%clk 0:02:59]} 5. Nxe5 {[%clk 0:02:54]}  a6 {[%clk 0:02:55]} 6. a4 {[%clk 0:02:54]}  Qc7 {[%clk 0:02:49]} 7. Nc4 {[%clk 0:02:54]}  Nbd7 {[%clk 0:02:42]} 8. a5 {[%clk 0:02:53]}  b5 {[%clk 0:02:38]} 9. axb6 {[%clk 0:02:48]}  Nxb6 {[%clk 0:02:38]} 10. Na5 {[%clk 0:02:48]}  e6 {[%clk 0:02:33]} 11. Qf3 {[%clk 0:02:44]}  Rb8 {[%clk 0:02:23]} 12. Qg3 {[%clk 0:02:18]}  e5 {[%clk 0:02:08]} 13. Nc4 {[%clk 0:02:03]}  Nbd7 {[%clk 0:01:53]} 14. d3 {[%clk 0:01:52]}  Be7 {[%clk 0:01:52]} 15. Be2 {[%clk 0:01:52]}  Bb7 {[%clk 0:01:46]} 16. Bd2 {[%clk 0:01:33]}  h5 {[%clk 0:01:45]} 17. h4 {[%clk 0:01:32]}  g6 {[%clk 0:01:27]} 18. f4 {[%clk 0:00:45]}  e4 {[%clk 0:01:14]} 19. dxe4 {[%clk 0:00:46]}  Nxe4 {[%clk 0:01:15]} 20. Nxe4 {[%clk 0:00:44]}  Bxe4 {[%clk 0:01:15]} 21. Rxa6 {[%clk 0:00:43]}  Qb7 {[%clk 0:01:04]} 22. Nd6+ {[%clk 0:00:23]}  Bxd6 {[%clk 0:01:03]} 23. Rxd6 {[%clk 0:00:24]}  Qc7 {[%clk 0:00:57]} 24. f5 {[%clk 0:00:16]}  Rb6 {[%clk 0:00:48]} 25. Re6+ {[%clk 0:00:11]}  fxe6 {[%clk 0:00:43]} 26. Qxc7 {[%clk 0:00:11]}  Rc6 {[%clk 0:00:43]} 27. Qg3 {[%clk 0:00:06]}  exf5 {[%clk 0:00:42]} 28. Bg5 {[%clk 0:00:05]}  c4 {[%clk 0:00:39]} 29. O-O {[%clk 0:00:05]}  Kf7 {[%clk 0:00:38]} 30. Rd1 {[%clk 0:00:05]}  Nc5 {[%clk 0:00:35]} 31. Rd6 {[%clk 0:00:05]}  Rhc8 {[%clk 0:00:33]} 32. Rxc6 {[%clk 0:00:05]}  Rxc6 {[%clk 0:00:34]} 33. Qe5 {[%clk 0:00:05]}  Nd7 {[%clk 0:00:32]} 34. Qe7+ {[%clk 0:00:05]}  Kg8 {[%clk 0:00:31]} 35. Qxd7 {[%clk 0:00:05]}  Rc5 {[%clk 0:00:29]} 36. Bf6 {[%clk 0:00:04]} 1-0


[Site "https://www.chess.com"]

[Event "Titled Tuesday Blitz March 07 Early 2023"]
[White "Bruned, Boris"]
[Black "Sarkar, Justin"]
[WhiteFideId "621790"]
[BlackFideId "2010011"]
[WhiteElo "2049"]
[BlackElo "2189"]
[Result "1-0"]
[Round "09"]
[TimeControl "180+2"]
[Date "2023.03.07"]
[WhiteClock "0:01:01"]
[BlackClock "0:00:01"]

1. b3 {[%clk 0:03:00]}  c5 {[%clk 0:02:43]} 2. Bb2 {[%clk 0:03:01]}  Nc6 {[%clk 0:02:42]} 3. Nf3 {[%clk 0:03:00]}  d6 {[%clk 0:02:34]} 4. d4 {[%clk 0:03:01]}  cxd4 {[%clk 0:02:33]} 5. Nxd4 {[%clk 0:03:01]}  Nf6 {[%clk 0:02:18]} 6. e3 {[%clk 0:03:00]}  e5 {[%clk 0:02:14]} 7. Nxc6 {[%clk 0:02:52]}  bxc6 {[%clk 0:02:13]} 8. c4 {[%clk 0:02:52]}  Be7 {[%clk 0:02:09]} 9. Be2 {[%clk 0:02:52]}  O-O {[%clk 0:02:08]} 10. O-O {[%clk 0:02:53]}  Nd7 {[%clk 0:02:01]} 11. Nc3 {[%clk 0:02:49]}  f5 {[%clk 0:01:47]} 12. Ba3 {[%clk 0:02:48]}  Qc7 {[%clk 0:01:44]} 13. Qd2 {[%clk 0:02:48]}  Nf6 {[%clk 0:01:37]} 14. Rad1 {[%clk 0:02:44]}  Rd8 {[%clk 0:01:34]} 15. f4 {[%clk 0:02:41]}  e4 {[%clk 0:01:23]} 16. h3 {[%clk 0:02:27]}  h5 {[%clk 0:01:19]} 17. Rc1 {[%clk 0:02:18]}  h4 {[%clk 0:01:15]} 18. Rfd1 {[%clk 0:02:15]}  Be6 {[%clk 0:01:12]} 19. Qe1 {[%clk 0:02:03]}  Nh7 {[%clk 0:01:05]} 20. Nd5 {[%clk 0:01:53]}  Qb7 {[%clk 0:00:35]} 21. Nxe7+ {[%clk 0:01:48]}  Qxe7 {[%clk 0:00:34]} 22. Qd2 {[%clk 0:01:48]}  c5 {[%clk 0:00:18]} 23. Qa5 {[%clk 0:01:47]}  Nf6 {[%clk 0:00:09]} 24. Rd2 {[%clk 0:01:43]}  Rd7 {[%clk 0:00:03]} 25. Rcd1 {[%clk 0:01:41]}  Qd8 {[%clk 0:00:03]} 26. Qa6 {[%clk 0:01:38]}  Qb6 {[%clk 0:00:02]} 27. Qa4 {[%clk 0:01:20]}  Rad8 {[%clk 0:00:01]} 28. Bb2 {[%clk 0:01:19]}  d5 {[%clk 0:00:01]} 29. Bxf6 {[%clk 0:01:12]}  gxf6 {[%clk 0:00:01]} 30. cxd5 {[%clk 0:01:12]}  Rxd5 {[%clk 0:00:02]} 31. Bc4 {[%clk 0:01:12]}  Rxd2 {[%clk 0:00:01]} 32. Bxe6+ {[%clk 0:01:01]} 1-0


[Site "https://www.chess.com"]